bitfinex-derivatives/quotes_SOLF0:USTF0_20251222
["timestamp","ask_amount","ask_price","bid_price","bid_amount"]
[1766435518102,0.0001452,124.58,124.56,0.05574596]
[1766435520794,0.0001452,124.58,124.5,3.21]
[1766435520994,2.02,124.6,124.51,98.05]
[1766435521199,2.02,124.6,124.52,3.21]
[1766435521801,0.06168515,124.57,124.55,0.05998254]
[1766435524001,0.00168515,124.57,124.55,3.26998254]
[1766435526703,9.3057,124.62,124.55,10.49948254]
[1766435527711,0.06100706,124.6,124.55,10.49948254]
[1766435528097,0.06100706,124.6,124.56,10.4889]
[1766435528308,14.444,124.69,124.56,10.4889]
[1766435528309,2.13,124.67,124.57,3.26]
[1766435528613,2.13,124.67,124.58,3.26]
[1766435529006,7.222,124.69,124.61,3.26]
[1766435529402,0.06148382,124.66,124.64,0.05314025]
[1766435530498,0.06148382,124.66,124.61,3.26]
[1766435530703,0.06148382,124.66,124.6,7.2262]
[1766435531012,0.06148382,124.66,124.6,10.4862]
[1766435531612,0.06148382,124.66,124.62,0.05317538]
[1766435531813,0.0528526,124.65,124.62,0.05317538]
[1766435532904,94.82,124.7,124.63,3.26]
[1766435532905,7.2213,124.7,124.63,3.26]
[1766435534011,0.05831002,124.68,124.65,0.05903042]
[1766435538713,96.98,124.73,124.65,3.31903042]
[1766435538913,2.24,124.72,124.65,3.26]
[1766435539116,94.8,124.73,124.65,3.26]
[1766435539414,97.04,124.73,124.65,3.26]
[1766435539817,97.04,124.73,124.68,0.05084774]
[1766435540015,7.2198,124.72,124.68,0.05084774]
[1766435540613,4.5471555,124.75,124.68,0.05084774]
[1766435540817,6.7871555,124.75,124.68,3.31084774]
[1766435541115,6.7871555,124.75,124.68,0.05084774]
[1766435541116,2.24,124.72,124.68,0.05084774]
[1766435541628,9.4602,124.72,124.68,0.05084774]
[1766435541828,2.24,124.72,124.68,0.05084774]
[1766435542114,7.2215,124.69,124.63,94.78]
[1766435542314,2.24,124.7,124.62,3.25]
[1766435542511,2.24,124.69,124.6,94.78]
[1766435542715,2.24,124.68,124.6,94.78]
[1766435543015,0.05539905,124.65,124.59,3.25]
[1766435544016,0.05539905,124.65,124.61,0.05553208]
[1766435544714,7.2231,124.67,124.61,3.30553208]
[1766435545825,0.05956079,124.65,124.61,3.30553208]
[1766435546219,0.05956079,124.65,124.61,0.05553208]
[1766435550423,2.29956079,124.65,124.58,3.25]
[1766435550630,2.29956079,124.65,124.56,3.25]
[1766435550830,2.24,124.65,124.56,3.25]
[1766435551526,0.05385631,124.62,124.59,0.05271267]
[1766435552030,0.05385631,124.62,124.59,0.00271267]
[1766435552638,2.18385631,124.62,124.54,7.2297]
[1766435552820,2.13,124.62,124.53,3.25]
[1766435553724,2.13,124.62,124.51,94.76]
[1766435553725,2.18557952,124.59,124.51,94.76]
[1766435553929,2.13,124.59,124.51,98.01]
[1766435554821,0.05554283,124.56,124.54,0.05885117]
[1766435555124,2.13,124.62,124.54,3.25885117]
[1766435555329,2.13,124.62,124.54,3.2]
[1766435556127,0.05186941,124.59,124.57,0.06061182]
[1766435557037,0.05186941,124.59,124.51,98.11]
[1766435557235,2.07,124.59,124.52,3.35]
[1766435557836,0.05237622,124.57,124.54,0.05454854]
[1766435560735,0.05237622,124.57,124.49,98.13]
[1766435560736,2.07237622,124.57,124.49,98.13]
[1766435560928,2.02,124.57,124.49,98.13]
[1766435561728,0.057972,124.54,124.52,0.06177428]
[1766435563822,2.077972,124.54,124.46,3.35]
[1766435564028,2.02,124.54,124.46,3.35]
[1766435564725,0.05781037,124.51,124.49,0.05996053]
[1766435567135,0.05781037,124.51,124.41,3.35]
[1766435567333,2.02,124.52,124.41,3.35]
[1766435568141,0.06068325,124.48,124.45,0.05569209]
[1766435570036,0.00068325,124.48,124.45,0.05569209]
[1766435570338,0.00068325,124.48,124.45,3.40569209]
[1766435570530,6.62263169,124.55,124.45,3.40569209]
[1766435570732,8.70263169,124.55,124.45,3.35]
[1766435571540,0.06020202,124.51,124.49,0.05121685]
[1766435573936,207.2973,124.56,124.49,3.40121685]
[1766435573937,102.0693,124.56,124.49,3.40121685]
[1766435574246,2.14,124.58,124.49,3.40121685]
[1766435574448,2.14,124.58,124.49,3.35]
[1766435574937,0.06145934,124.55,124.52,0.05946279]
[1766435576144,7.2278,124.59,124.52,3.40946279]
[1766435576343,2.14,124.61,124.52,3.35]
[1766435576746,2.2,124.64,124.55,3.35]
[1766435576941,6.62263169,124.66,124.55,3.35]
[1766435577142,0.06113397,124.62,124.59,0.05328728]
[1766435580247,0.00113397,124.62,124.59,3.40328728]
[1766435580636,2.2,124.67,124.6,3.35]
[1766435581148,9.4228,124.67,124.6,3.35]
[1766435581747,0.05920856,124.65,124.62,0.05231296]
[1766435591152,7.2206,124.71,124.63,3.49]
[1766435591456,6.8671555,124.75,124.64,3.49]
[1766435591858,6.8671555,124.75,124.67,3.49]
[1766435591859,14.0853555,124.75,124.67,3.49]
[1766435592056,0.06055101,124.72,124.7,0.06053098]
[1766435592254,0.06055101,124.72,124.62,119.01743169]
[1766435592255,2.38055101,124.72,124.64,3.49]
[1766435592450,7.2211,124.7,124.64,3.49]
[1766435593555,0.05271631,124.68,124.66,0.05565901]
[1766435594153,9.5399,124.72,124.66,3.54565901]
[1766435594459,7.2199,124.72,124.66,3.54565901]
[1766435594857,94.8,124.74,124.66,3.54565901]
[1766435595058,94.8,124.74,124.66,3.49]
[1766435595258,0.05191366,124.71,124.69,0.0595899]
[1766435601663,4.5471555,124.75,124.69,3.5495899]
[1766435602164,2.42,124.8,124.73,10.7091]
[1766435602365,3.36,124.83,124.74,3.49]
[1766435602762,0.05296498,124.8,124.77,0.06125309]
[1766435604665,3.36,124.86,124.77,3.55125309]
[1766435604861,3.36,124.84,124.74,3.49]
[1766435605061,3.36,124.84,124.75,98.23]
[1766435605258,3.36,124.84,124.76,3.49]
[1766435605453,7.214,124.82,124.76,3.49]
[1766435605956,7.214,124.82,124.78,0.05493577]
[1766435606858,3.36,124.84,124.78,0.05493577]
[1766435608362,122.93850305,124.86,124.78,3.54493577]
[1766435608566,122.93850305,124.86,124.81,0.0541467]
[1766435608567,3.36,124.86,124.81,0.0541467]
[1766435608958,3.36,124.84,124.75,3.49]
[1766435609668,3.36,124.84,124.77,3.49]
[1766435610064,0.05483956,124.82,124.79,0.05171126]
[1766435611866,7.2126,124.85,124.79,3.54171126]
[1766435612367,3.36,124.85,124.79,3.54171126]
[1766435612570,3.5,124.82,124.73,97.95]
[1766435612763,3.5,124.82,124.74,3.27]
[1766435613671,0.05526422,124.79,124.77,0.05461044]
[1766435614672,3.5,124.82,124.77,0.05461044]
[1766435616268,3.23,124.79,124.77,0.00461044]
[1766435616468,3.23,124.79,124.73,3.27]
[1766435617169,3.23,124.78,124.68,3.26]
[1766435617371,3.23,124.78,124.7,3.26]
[1766435617673,0.05519998,124.75,124.73,0.05759373]
[1766435619266,7.2157,124.79,124.73,0.05759373]
[1766435619766,10.445,124.81,124.73,0.05759373]
[1766435619970,3.23,124.81,124.72,3.26]
[1766435620277,3.23,124.79,124.7,3.26]
[1766435621372,0.05254304,124.76,124.73,0.05470719]
[1766435625580,0.00254304,124.76,124.73,3.31470719]
[1766435625877,343.85038242,124.88,124.73,3.31470719]
[1766435625878,3.23,124.81,124.73,3.31470719]
[1766435626082,122.94690305,124.85,124.73,3.31470719]
[1766435626083,7.214,124.82,124.73,3.26]
[1766435626668,7.214,124.82,124.76,0.05997461]
[1766435628580,3.23,124.84,124.76,10.53737461]
[1766435628775,3.23,124.84,124.79,0.05136398]
[1766435629178,10.4429,124.84,124.79,0.05136398]
[1766435631785,3.23,124.84,124.79,0.05136398]
[1766435633281,3.23,124.9,124.79,3.31136398]
[1766435633486,39.0340972,124.94,124.78,112.2508]
[1766435633487,115.3186,124.97,124.85,3.26]
[1766435633683,227.4451,124.95,124.9,0.05293756]
[1766435633883,3.23,124.94,124.9,0.05293756]
[1766435634083,3.23,124.94,124.85,3.26]
[1766435634584,10.4381,124.93,124.85,3.26]
[1766435634920,3.23,124.92,124.85,3.26]
[1766435635091,3.23,124.92,124.87,0.05889518]
[1766435635092,0.05464156,124.9,124.87,0.05889518]
[1766435636900,3.28464156,124.9,124.82,3.26]
[1766435637100,3.23,124.9,124.82,3.26]
[1766435637299,3.23,124.93,124.84,3.26]
[1766435637802,0.05534243,124.9,124.87,3.31422187]
[1766435638095,3.23,124.96,124.87,3.31514486]
[1766435638295,3.23,124.96,124.87,3.26]
[1766435638495,10.436,124.96,124.88,7.2102]
[1766435638900,10.436,124.96,124.87,3.26]
[1766435639097,0.05343143,124.93,124.9,0.05314004]
[1766435642097,3.23,124.92,124.9,0.00314004]
[1766435642290,3.23,124.91,124.82,3.26]
[1766435642490,115.377,124.9,124.82,3.26]
[1766435642692,115.377,124.9,124.79,10.4754]
[1766435642693,7.2112,124.87,124.79,10.4754]
[1766435642892,3.23,124.86,124.76,94.6]
[1766435643093,3.23,124.86,124.77,3.26]
[1766435643300,0.05721481,124.83,124.8,0.06160569]
[1766435644091,94.6,124.88,124.8,3.32160569]
[1766435644296,3.23,124.89,124.8,3.26]
[1766435644698,97.83,124.89,124.8,3.26]
[1766435645099,0.0513513,124.86,124.83,0.05449379]
[1766435648908,0.0013513,124.86,124.83,0.05449379]
[1766435649699,0.0013513,124.86,124.83,7.26769379]
[1766435650705,0.0013513,124.86,124.83,0.05449379]
[1766435651012,3.26,124.92,124.83,3.40449379]
[1766435651201,3.26,124.92,124.83,3.35]
[1766435651398,3.26,124.92,124.84,7.2126]
[1766435652003,3.26,124.92,124.87,0.05805483]
[1766435652609,3.26,124.92,124.83,3.35]
[1766435652996,10.469,124.91,124.83,10.5633]
[1766435653505,0.05456129,124.88,124.86,0.05679258]
[1766435654211,0.05456129,124.88,124.83,3.35]
[1766435654709,7.26516129,124.88,124.81,94.6]
[1766435655111,7.26516129,124.88,124.83,0.05773902]
[1766435655409,0.06044158,124.87,124.83,0.05773902]
[1766435656303,0.06044158,124.87,124.83,3.40773902]
[1766435656504,0.00044158,124.87,124.83,3.40773902]
[1766435657610,0.00044158,124.87,124.84,7.2126]
[1766435657907,0.00044158,124.87,124.83,3.40773902]
[1766435658106,0.00044158,124.87,124.83,10.62103902]
[1766435658902,0.00044158,124.87,124.83,3.40773902]
[1766435659098,0.00044158,124.87,124.83,0.05773902]
[1766435660807,0.00044158,124.87,124.83,3.40773902]
[1766435661208,0.00044158,124.87,124.83,0.05773902]
[1766435661802,3.26044158,124.87,124.8,3.35]
[1766435662007,3.26044158,124.87,124.78,3.35]
[1766435662208,3.26,124.87,124.78,3.35]
[1766435663004,0.05707973,124.84,124.81,0.05520006]
[1766435666505,3.26,124.87,124.81,3.40520006]
[1766435667610,0.053815,124.85,124.81,10.61940006]
[1766435669214,3.313815,124.85,124.81,0.05520006]
[1766435669703,3.313815,124.85,124.78,3.35]
[1766435670615,3.313815,124.85,124.8,7.215]
[1766435670818,3.313815,124.85,124.81,0.05802616]
[1766435671016,3.313815,124.85,124.78,3.35]
[1766435671419,3.313815,124.85,124.78,10.5658]
[1766435672116,3.313815,124.85,124.8,0.05192753]
[1766435674222,10.526415,124.85,124.8,0.00192753]
[1766435674416,3.26,124.84,124.8,0.00192753]
[1766435675208,3.26,124.84,124.78,7.2162]
[1766435675209,3.26,124.83,124.74,3.35]
[1766435676222,0.0578215,124.8,124.77,0.05455891]
[1766435676823,0.0578215,124.8,124.78,7.2162]
[1766435677521,0.0578215,124.8,124.77,7.27135891]
[1766435677721,0.0578215,124.8,124.77,0.05455891]
[1766435680319,3.3478215,124.8,124.72,94.62]
[1766435680509,3.29,124.8,124.72,94.62]
[1766435680715,3.29,124.8,124.72,97.9]
[1766435681324,0.05450504,124.77,124.75,0.06065146]
[1766435690233,2.46782127,124.81,124.75,0.06065146]
[1766435690532,5.75782127,124.81,124.75,3.34065146]
[1766435690827,3.29,124.81,124.75,3.34065146]
[1766435691228,3.29,124.83,124.76,3.28]
[1766435692036,3.29,124.83,124.77,3.28]
[1766435692331,0.05734162,124.81,124.79,0.056837]
[1766435693525,0.05734162,124.81,124.79,7.272437]
[1766435694531,0.05734162,124.81,124.79,0.056837]
[1766435697131,10.5022,124.85,124.79,0.056837]
[1766435697342,10.5022,124.85,124.79,3.336837]
[1766435698138,0.05866087,124.83,124.79,3.336837]
[1766435698838,10.5016,124.87,124.79,10.552437]
[1766435699135,12.96942127,124.87,124.8,3.28]
[1766435700040,0.05102935,124.85,124.82,0.05785455]
[1766435701336,3.29,124.82,124.74,3.28]
[1766435702139,3.29,124.85,124.76,3.28]
[1766435702343,3.29,124.88,124.8,3.28]
[1766435702539,5.75782127,124.87,124.8,3.28]
[1766435702941,3.29,124.87,124.8,3.28]
[1766435703144,5.75782127,124.89,124.8,3.28]
[1766435703347,0.05310489,124.86,124.83,0.05184233]
[1766435703537,3.34310489,124.86,124.8,3.28]
[1766435703844,2.46782127,124.85,124.8,3.28]
[1766435704746,2.46782127,124.85,124.81,0.05045244]
[1766435705238,5.75782127,124.83,124.78,94.64]
[1766435705434,5.75782127,124.83,124.75,3.28]
[1766435706347,0.05704208,124.8,124.78,0.05744285]
[1766435707146,0.05704208,124.8,124.75,3.28]
[1766435707548,2.46782127,124.79,124.74,101.858]
[1766435707851,2.46782127,124.79,124.74,94.64]
[1766435708047,2.46782127,124.79,124.71,112.3109]
[1766435708048,2.46782127,124.77,124.71,7.22]
[1766435708347,2.46782127,124.77,124.75,0.06134507]
[1766435708538,2.52038184,124.77,124.75,0.0541317]
[1766435709748,2.52038184,124.77,124.75,0.0041317]
[1766435709949,0.05256057,124.77,124.75,0.0041317]
[1766435710547,0.05256057,124.77,124.7,94.64]
[1766435710548,5.93782127,124.76,124.7,94.64]
[1766435710946,5.93782127,124.74,124.68,3.43]
[1766435711442,0.05381441,124.72,124.7,0.05821269]
[1766435712138,3.52381441,124.72,124.66,94.64]
[1766435712451,3.47,124.71,124.64,3.43]
[1766435712743,2.46782127,124.72,124.64,3.43]
[1766435713347,0.05425656,124.69,124.67,0.05820258]
[1766435713961,0.00425656,124.69,124.67,0.05820258]
[1766435714158,3.47,124.76,124.67,3.48820258]
[1766435714360,3.47,124.73,124.63,94.64]
[1766435715064,0.05725476,124.69,124.67,0.05043914]
[1766435715257,0.05210832,124.69,124.67,0.05043914]
[1766435718062,0.00210832,124.69,124.67,3.48043914]
[1766435718265,0.00210832,124.69,124.67,0.05043914]
[1766435720364,0.00210832,124.69,124.63,94.64]
[1766435721555,0.00210832,124.69,124.65,0.05831728]
[1766435721757,3.47210832,124.69,124.65,0.05831728]
[1766435722270,3.47210832,124.69,124.61,3.43]
[1766435722475,3.47,124.69,124.61,3.43]
[1766435722873,10.6917,124.69,124.61,10.6559]
[1766435723265,0.06107053,124.66,124.64,0.05356821]
[1766435725970,0.06107053,124.66,124.61,3.43]
[1766435726168,10.75447053,124.66,124.6,94.7]
[1766435727177,10.75447053,124.66,124.62,0.05914553]
[1766435729974,7.2239,124.65,124.62,0.05914553]
[1766435730372,3.2,124.65,124.57,3.2]
[1766435730785,10.4243,124.65,124.57,3.2]
[1766435731276,0.05529079,124.62,124.6,0.05366047]
[1766435733076,7.2231,124.67,124.6,3.25366047]
[1766435733581,10.4231,124.67,124.6,3.25366047]
[1766435733882,10.4231,124.67,124.6,10.48026047]
[1766435734082,0.05773057,124.65,124.6,10.48026047]
[1766435736680,0.05773057,124.65,124.61,3.32]
[1766435736984,0.05773057,124.65,124.61,10.5461]
[1766435738275,0.05773057,124.65,124.6,0.05366047]
[1766435738878,3.39773057,124.65,124.6,0.05366047]
[1766435739479,10.62163057,124.65,124.6,0.05366047]
[1766435739678,3.34,124.64,124.6,0.05366047]
[1766435739872,3.34,124.64,124.56,3.32]
[1766435740194,3.34,124.64,124.57,7.2284]
[1766435740775,3.34,124.64,124.59,0.052306]
[1766435740970,0.05408109,124.62,124.59,0.052306]
[1766435741683,0.05408109,124.62,124.56,3.32]
[1766435741889,3.39408109,124.62,124.56,3.32]
[1766435742681,3.39408109,124.62,124.58,0.05165008]
[1766435742882,10.61958109,124.62,124.58,0.05165008]
[1766435743685,10.5662,124.61,124.55,94.74]
[1766435743884,3.34,124.61,124.53,3.32]
[1766435744280,3.34,124.61,124.54,10.5501]
[1766435744885,3.34,124.65,124.56,3.37495989]
[1766435745085,3.34,124.64,124.56,3.32]
[1766435745288,3.34,124.63,124.53,3.32]
[1766435745482,10.5661,124.61,124.53,3.32]
[1766435745875,0.05651692,124.58,124.56,0.05247904]
[1766435746279,3.34,124.63,124.56,3.37247904]
[1766435746483,3.34,124.63,124.56,3.32]
[1766435747083,3.34,124.63,124.57,7.2284]
[1766435747282,0.06005822,124.61,124.59,0.05365992]
[1766435750493,0.06005822,124.61,124.57,3.32]
[1766435751488,0.06005822,124.61,124.58,0.05093951]
[1766435754586,0.06005822,124.61,124.53,3.32]
[1766435754587,3.40005822,124.61,124.53,3.32]
[1766435754782,231.223,124.64,124.53,3.32]
[1766435754783,10.5668,124.6,124.53,10.5507]
[1766435754989,3.34,124.6,124.53,7.2307]
[1766435755489,10.5667,124.6,124.53,7.2307]
[1766435755687,0.0604549,124.58,124.55,0.0514174]
[1766435756999,3.4004549,124.58,124.53,7.2307]
[1766435757998,3.4004549,124.58,124.54,0.05090733]
[1766435758893,0.0604549,124.58,124.54,0.05090733]
[1766435759197,0.0604549,124.58,124.54,7.28110733]
[1766435759597,0.0604549,124.58,124.54,0.05090733]
[1766435761092,0.0004549,124.58,124.56,3.32]
[1766435761901,0.0004549,124.58,124.54,0.05090733]
[1766435763905,0.0004549,124.58,124.54,3.37090733]
[1766435764303,0.0004549,124.58,124.54,10.60100733]
[1766435764504,0.0004549,124.58,124.54,3.37090733]
[1766435765799,0.0004549,124.58,124.54,3.34090733]
[1766435766600,3.3704549,124.58,124.54,0.05090733]
[1766435767707,10.5984549,124.58,124.54,0.05090733]
[1766435769708,0.0004549,124.58,124.55,10.5195]
[1766435770010,0.0004549,124.58,124.56,3.29]
[1766435770419,0.0004549,124.58,124.56,10.5188]
[1766435773115,0.0004549,124.58,124.57,10.5184]
[1766435774320,0.0004549,124.58,124.57,7.2284]
[1766435775624,7.2236,124.66,124.59,7.2269]
[1766435775809,3.37,124.68,124.6,3.29]
[1766435776414,3.37,124.64,124.57,3.29]
[1766435776622,0.05255321,124.62,124.59,0.06128057]
[1766435782727,5.89683132,124.62,124.54,98.09]
[1766435783029,5.84427811,124.62,124.54,98.09]
[1766435783325,5.84427811,124.62,124.55,3.29]
[1766435783625,0.05853373,124.6,124.57,0.05480083]
[1766435789013,3.42853373,124.6,124.53,10.5202]
[1766435789217,5.84427811,124.59,124.51,3.29]
[1766435789430,13.07157811,124.59,124.51,3.29]
[1766435790019,0.05596478,124.56,124.54,0.05409523]
[1766435793227,0.05596478,124.56,124.51,10.5216]
[1766435793726,0.05596478,124.56,124.52,7.2313]
[1766435794328,0.05596478,124.56,124.53,0.061012]
[1766435794926,0.05596478,124.56,124.53,7.291712]
[1766435798528,0.05596478,124.56,124.53,0.061012]
[1766435801639,3.54596478,124.56,124.53,0.061012]
[1766435801841,5.96427811,124.55,124.49,3.34]
[1766435802434,5.96427811,124.55,124.49,10.573]
[1766435802638,5.96427811,124.55,124.49,3.34]
[1766435802830,0.05671281,124.53,124.51,0.04511173]
[1766435803037,0.05071175,124.53,124.51,0.04511173]
[1766435803632,2.47427811,124.59,124.52,3.34]
[1766435803832,5.96427811,124.59,124.52,3.34]
[1766435804232,5.96427811,124.59,124.53,7.2306]
[1766435804938,0.05353352,124.57,124.55,0.05446195]
[1766435805737,0.05353352,124.57,124.55,0.00446195]
[1766435805941,2.52781163,124.57,124.5,3.34]
[1766435806146,2.47427811,124.57,124.5,3.34]
[1766435806940,0.0600805,124.55,124.52,0.04136153]
[1766435807339,0.0600805,124.55,124.52,7.27256153]
[1766435809048,0.0600805,124.55,124.52,0.04136153]
[1766435810750,8.05e-05,124.55,124.52,3.38136153]
[1766435811452,8.05e-05,124.55,124.52,10.61256153]
[1766435812553,8.05e-05,124.55,124.52,0.04136153]
[1766435813054,8.05e-05,124.55,124.52,7.27266153]
[1766435814054,8.05e-05,124.55,124.53,7.2307]
[1766435815754,8.05e-05,124.55,124.53,10.5707]
[1766435815950,1.3344348,153.94,124.53,10.5707]
[1766435815951,5.96427811,124.62,124.55,3.34]
[1766435816761,3.49,124.62,124.55,3.34]
[1766435816957,0.06074926,124.6,124.57,0.05799358]
[1766435817160,0.05943657,124.6,124.57,0.05768072]
[1766435817565,0.05943657,124.6,124.53,3.34]
[1766435817566,2.47427811,124.59,124.53,3.34]
[1766435817768,5.96427811,124.59,124.53,3.34]
[1766435818559,0.05060748,124.57,124.55,0.04376131]
[1766435820670,0.00060748,124.57,124.55,0.04376131]
[1766435830280,2.47427811,124.61,124.56,3.37]
[1766435831287,0.06047763,124.6,124.56,3.37]
[1766435831686,0.06047763,124.6,124.56,10.5988]
[1766435831879,0.06047763,124.6,124.57,3.37]
[1766435832078,0.00047763,124.6,124.57,3.37]
[1766435833578,0.00047763,124.6,124.57,10.5983]
[1766435836688,0.00047763,124.6,124.58,7.2278]
[1766435836886,0.00047763,124.6,124.58,7.28050248]
[1766435837090,0.00047763,124.6,124.59,3.37]
[1766435844583,0.00047763,124.6,124.56,94.8]
[1766435845298,0.00047763,124.6,124.51,3.37]
[1766435845299,3.36047763,124.6,124.51,3.37]
[1766435845488,3.36,124.6,124.53,3.37]
[1766435845688,0.05945336,124.58,124.55,0.05246936]
[1766435845895,7.2266,124.61,124.55,3.42246936]
[1766435846899,0.0594373,124.59,124.55,3.42246936]
[1766435847796,7.2258,124.62,124.55,3.42246936]
[1766435848593,7.2258,124.62,124.56,3.37]
[1766435848793,7.2258,124.62,124.58,0.0592151]
[1766435848794,0.0553034,124.6,124.58,0.0592151]
[1766435850401,10.5848,124.64,124.58,0.0592151]
[1766435850599,10.6437,124.66,124.58,3.3292151]
[1766435850898,3.42,124.69,124.6,3.27]
[1766435851104,112.3142,124.72,124.6,3.27]
[1766435851105,3.42,124.72,124.66,3.27]
[1766435851297,112.2841,124.75,124.66,3.27]
[1766435851298,7.28619983,124.75,124.66,3.27]
[1766435851490,0.05333746,124.72,124.69,0.05696548]
[1766435851688,3.47333746,124.72,124.64,102.0239]
[1766435851894,7.28619983,124.71,124.64,94.8]
[1766435852294,3.42,124.7,124.64,94.8]
[1766435852494,10.641,124.7,124.64,94.8]
[1766435852696,0.0536066,124.68,124.66,0.05590688]
[1766435853702,0.0036066,124.68,124.66,0.05590688]
[1766435855900,3.2836066,124.68,124.62,3.39]
[1766435856101,3.28,124.68,124.62,3.39]
[1766435856797,3.28,124.68,124.64,0.05903519]
[1766435857002,0.05206417,124.66,124.64,0.05903519]
[1766435860508,0.00206417,124.66,124.64,0.05903519]
[1766435869113,0.00206417,124.66,124.64,3.44903519]
[1766435870217,10.5009,124.71,124.64,10.67333519]
[1766435871315,0.05189968,124.69,124.64,3.44903519]
[1766435874618,0.05189968,124.69,124.65,3.39]
[1766435875014,98.04,124.74,124.65,3.39]
[1766435875621,7.2192,124.73,124.66,10.6131]
[1766435875814,10.4992,124.73,124.67,3.39]
[1766435876118,0.05397781,124.71,124.69,0.05810683]
[1766435876713,3.33397781,124.71,124.65,3.39]
[1766435876913,3.28,124.71,124.65,3.39]
[1766435877720,0.05614576,124.69,124.67,0.05531572]
[1766435877922,10.55774576,124.69,124.63,3.39]
[1766435878123,10.5016,124.69,124.63,3.39]
[1766435878424,7.2221,124.68,124.63,3.39]
[1766435879012,0.06091282,124.67,124.64,0.05910244]
[1766435879826,7.28361282,124.67,124.64,0.05910244]
[1766435880124,0.06091282,124.67,124.64,0.05910244]
[1766435881720,3.34091282,124.67,124.6,98.17]
[1766435881913,3.34091282,124.67,124.55,112.4525]
[1766435881914,3.28,124.65,124.58,10.6177]
[1766435882120,7.14026574,124.69,124.59,3.39]
[1766435882318,3.28,124.68,124.59,3.39]
[1766435882926,0.06155311,124.65,124.62,0.05346121]
[1766435889335,7.28535311,124.65,124.62,0.05346121]
[1766435890240,0.06155311,124.65,124.62,0.05346121]
[1766435890449,0.00155311,124.65,124.62,3.41346121]
[1766435892639,3.36,124.71,124.62,3.41346121]
[1766435892842,3.36,124.71,124.62,3.36]
[1766435893541,0.05865022,124.68,124.65,0.05818158]
[1766435904955,9.6911814,124.73,124.65,3.41818158]
[1766435905256,2.4715814,124.74,124.65,3.36]
[1766435905556,9.6901814,124.74,124.68,3.36]
[1766435905756,5.8315814,124.75,124.68,3.36]
[1766435905957,0.05134597,124.73,124.7,0.05755861]
[1766435906552,3.41134597,124.73,124.66,10.5826]
[1766435906748,2.4715814,124.72,124.66,10.5826]
[1766435907851,0.00012874,124.7,124.68,3.41820053]
[1766435908049,2.4715814,124.75,124.68,3.36]
[1766435908250,2.4715814,124.75,124.66,112.359]
[1766435908251,2.4715814,124.75,124.69,10.5813]
[1766435908653,2.4715814,124.73,124.67,3.36]
[1766435908960,2.4715814,124.73,124.69,0.05508043]
[1766435908961,0.05669559,124.71,124.69,0.05508043]
[1766435911765,2.4715814,124.7,124.65,94.74]
[1766435912355,5.7615814,124.7,124.64,3.39]
[1766435912764,0.05432996,124.68,124.66,0.05789348]
[1766435913159,5.81591136,124.68,124.62,7.2255]
[1766435913358,5.81591136,124.68,124.62,3.39]
[1766435913560,3.34432996,124.68,124.62,3.39]
[1766435914167,3.34432996,124.68,124.64,0.05559052]
[1766435914362,0.05432996,124.68,124.64,0.05559052]
[1766435917370,0.05432996,124.68,124.64,10.79989052]
[1766435918971,0.05432996,124.68,124.65,3.52]
[1766435919172,0.00432996,124.68,124.65,3.52]
[1766435921577,5.74591136,124.68,124.64,0.05559052]
[1766435922267,12.96801136,124.68,124.64,0.05559052]
[1766435922977,5.74591136,124.68,124.64,0.05559052]
[1766435923676,12.96811136,124.68,124.64,0.05559052]
[1766435923980,2.4715814,124.66,124.61,10.7461]
[1766435925076,0.06102173,124.65,124.62,0.05508337]
[1766435926778,0.00102173,124.65,124.62,10.80038337]
[1766435928077,0.00102173,124.65,124.62,0.05508337]
[1766435932078,0.00102173,124.65,124.62,3.57508337]
[1766435934283,0.00102173,124.65,124.62,0.05508337]
[1766435936691,0.00102173,124.65,124.62,3.57508337]